Workbook

Sheet таб
A1: 10-ти дневное меню для обеспечения бесплатным двухразовым питанием обучающихся с ограниченными возможностями здоровья, детей - инвалидов возрастной группы 7-11 лет МОУ
A2: Утверждаю | F2: Согласовано
A3: Директор | F3: Директор
A4: ___________________ | F4: ___________________
A5: 1 день
A6: Прием пищи, наименование блюда | B6: Масса порции | C6: Пищевые вещества | F6: Энергети-ческая ценность, ккал | G6: № рецеп-туры | H6: Сборник рецептур
C7: Белки, г | D7: Жиры, г | E7: Углеводы, г
A8: Завтрак
A9: ГУЛЯШ ИЗ МЯСА ПТИЦЫ №311К | B9: 90 | C9: 8.6 | D9: 10.4 | E9: 6.8 | F9: 158.3 | G9: 311К
A10: МАКАРОННЫЕ ИЗДЕЛИЯ ОТВАРНЫЕ №203 | B10: 150 | C10: 3.70 | D10: 5.70 | E10: 28.20 | F10: 195.70 | G10: 203 | H10: 2017
A11: ОВОЩИ ПО СЕЗОНУ(огурец св., помидор св.,капуста квашеная,огурец сол.,помидор сол.) | B11: 60 | C11: 0.60 | D11: 0.10 | E11: 1.75 | F11: 13.20 | G11: 70,71,80 | H11: 2017
A12: КОМПОТ ИЗ СМЕСИ СУХОФРУКТОВ № 53 | B12: 200 | C12: 0.30 | D12: 0.00 | E12: 16.00 | F12: 66.40 | G12: 53
A13: ХЛЕБ ПШЕНИЧНЫЙ №6 | B13: 30 | C13: 2.37 | D13: 0.30 | E13: 14.49 | F13: 70.90 | G13: 6
A14: Итого за прием пищи: | B14: 530 | C14: =C13+C12+C11+C10+C9 -> 15.57 | D14: =D13+D12+D11+D10+D9 -> 16.50 | E14: =E13+E12+E11+E10+E9 -> 67.24 | F14: =F13+F12+F11+F10+F9 -> 504.50
A15: Полдник
A16: БУЛОЧКА СДОБНАЯ №146 | B16: 100 | C16: 8.90 | D16: 9.50 | E16: 31.50 | F16: 220.10 | G16: 146
A17: КОМПОТ ИЗ СУХОФРУКТОВ №53 | B17: 200 | C17: 0.30 | D17: 0.00 | E17: 16.00 | F17: 66.40 | G17: 53
A18: Итого за прием пищи: | B18: 300 | C18: =SUM(C16:C17) -> 9.20 | D18: =SUM(D16:D17) -> 9.50 | E18: =SUM(E16:E17) -> 47.50 | F18: =SUM(F16:F17) -> 286.50
A19: Утверждаю | F19: Согласовано
A20: Директор | F20: Директор
A21: ___________________ | F21: ___________________
A22: 2 день
A23: Прием пищи, наименование блюда | B23: Масса порции | C23: Пищевые вещества | F23: Энергети-ческая ценность, ккал | G23: № рецеп-туры | H23: Сборник рецептур
C24: Белки, г | D24: Жиры, г | E24: Углеводы, г
A25: Завтрак
A26: СВЕКЛА ОТВАРНАЯ №2 | B26: 60/2 | C26: 0.9 | D26: 0.1 | E26: 5.1 | F26: 24.4 | G26: 2
A27: ТЕФТЕЛИ С РИСОМ (говядина) С СОУСОМ ТОМАТНЫМ №307/363 | B27: 90/30 | C27: 10.90 | D27: 10.90 | E27: 13.50 | F27: 205.60 | G27: 307/363
A28: КАША ГРЕЧНЕВАЯ ВЯЗКАЯ (ГАРНИР) №303 | B28: 150 | C28: 3.99 | D28: 4.50 | E28: 17.72 | F28: 125.90 | G28: 303
A29: ЧАЙ С САХАРОМ № 685 | B29: 200 | C29: 0.20 | D29: 0.00 | E29: 15.00 | F29: 58.00 | G29: 685 | H29: 2011
A30: ХЛЕБ РЖАНО-ПШЕНИЧНЫЙ №7 | B30: 50 | C30: 3.13 | D30: 0.50 | E30: 20.63 | F30: 99.00 | G30: 7
A31: Итого за прием пищи: | B31: 582 | C31: =SUM(C26:C30) -> 19.12 | D31: =SUM(D26:D30) -> 16.00 | E31: =SUM(E26:E30) -> 71.95 | F31: =SUM(F26:F30) -> 512.90
A32: Полдник
A33: КРУАССАН № 147 | B33: 100 | C33: 8.30 | D33: 8.80 | E33: 32.20 | F33: 218.80 | G33: 147
A34: КОФЕЙНЫЙ НАПИТОК С МОЛОКОМ № 379 | B34: 200 | C34: 3.16 | D34: 2.66 | E34: 15.94 | F34: 100.60 | G34: 379
A35: Итого за прием пищи: | B35: 300 | C35: =SUM(C33:C34) -> 11.46 | D35: =SUM(D33:D34) -> 11.46 | E35: =SUM(E33:E34) -> 48.14 | F35: =SUM(F33:F34) -> 319.40
A37: Утверждаю | F37: Согласовано
A38: Директор | F38: Директор
A39: ___________________ | F39: ___________________
A40: 3 день
A41: Прием пищи, наименование блюда | B41: Масса порции | C41: Пищевые вещества | F41: Энергети-ческая ценность, ккал | G41: № рецеп-туры | H41: Сборник рецептур
C42: Белки, г | D42: Жиры, г | E42: Углеводы, г
A43: Завтрак
A44: ОВОЩИ ПО СЕЗОНУ (ПОМИДОР СОЛЕНЫЙ или ПОМИДОР СВЕЖИЙ) № 27 | B44: 60 | C44: 0.6 | D44: 0.0 | E44: 1.4 | F44: 8.0 | G44: 27
A45: ПЛОВ ИЗ ПТИЦЫ № 492 | B45: 200 | C45: 15.10 | D45: 19.00 | E45: 30.20 | F45: 345.80 | G45: 492
A46: КОМПОТ ИЗ СУХОФРУКТОВ №53 | B46: 200 | C46: 0.30 | D46: 0.00 | E46: 16.00 | F46: 66.40 | G46: 53 | H46: 0
A47: ХЛЕБ РЖАНО-ПШЕНИЧНЫЙ №7 | B47: 50 | C47: 3.13 | D47: 0.50 | E47: 20.63 | F47: 99.00 | G47: 7
A48: Итого за прием пищи: | B48: 510 | C48: =SUM(C44:C47) -> 19.13 | D48: =SUM(D44:D47) -> 19.50 | E48: =SUM(E44:E47) -> 68.23 | F48: =SUM(F44:F47) -> 519.20
A49: Полдник
A50: ПИРОЖОК В АССОРТИМЕНТЕ № 140 | B50: 100 | C50: 8.80 | D50: 9.60 | E50: 33.70 | F50: 226.90 | G50: 140
A51: ЧАЙ С САХАРОМ № 685 | B51: 200 | C51: 0.20 | D51: 0.00 | E51: 15.00 | F51: 58.00 | G51: 685 | H51: 2011
A52: Итого за прием пищи: | B52: 300 | C52: =SUM(C50:C51) -> 9.00 | D52: =SUM(D50:D51) -> 9.60 | E52: =SUM(E50:E51) -> 48.70 | F52: =SUM(F50:F51) -> 284.90
A53: Утверждаю | F53: Согласовано
A54: Директор | F54: Директор
A55: ________________ | F55: ___________________
A56: 4 день
A57: Прием пищи, наименование блюда | B57: Масса порции | C57: Пищевые вещества | F57: Энергети-ческая ценность, ккал | G57: № рецеп-туры | H57: Сборник рецептур
C58: Белки, г | D58: Жиры, г | E58: Углеводы, г
A59: Завтрак
A60: БЛЮДО ИЗ РЫБЫ (РЫБА,ТУШЕНАЯ В ТОМАТЕ С ОВОЩАМИ №229 или КОТЛЕТЫ РЫБНЫЕ В ТОМАТНОМ СОУСЕ ТТК№106 ) | B60: 90 | C60: 9,1/11,60 | D60: 11,6/11,80 | E60: 10,9/13,0 | F60: 142,3/159,00 | G60: 229/106 | H60: 2017
A61: КАРТОФЕЛЬ ОТВАРНОЙ С МАСЛОМ №310 | B61: 160 | C61: 3.04 | D61: 4.50 | E61: 24.55 | F61: 151.40 | G61: 310 | H61: 2017
A62: ЧАЙ С САХАРОМ И ЛИМОНОМ №686 | B62: 200 | C62: 0.30 | D62: 0.00 | E62: 15.20 | F62: 60.00 | G62: 686 | H62: 2011
A63: ХЛЕБ ПШЕНИЧНЫЙ №6 | B63: 50 | C63: 3.95 | D63: 0.50 | E63: 21.15 | F63: 116.33 | G63: 6
A64: Итого за прием пищи: | B64: =SUM(B60:B63) -> 500 | C64: 16,39/18,89 | D64: 16,6/16,8 | E64: 71,8/73,9 | F64: 470,03/486,73
A65: Полдник
A66: БУЛОЧКА СДОБНАЯ №146 | B66: 100 | C66: 8.90 | D66: 9.50 | E66: 31.50 | F66: 220.10 | G66: 146
A67: КОМПОТ ИЗ ИЗЮМА №51 | B67: 200 | C67: 0.30 | D67: 0.00 | E67: 16.00 | F67: 66.40 | G67: 51
A68: Итого за прием пищи: | B68: 300 | C68: =SUM(C66:C67) -> 9.20 | D68: =SUM(D66:D67) -> 9.50 | E68: =SUM(E66:E67) -> 47.50 | F68: =SUM(F66:F67) -> 286.50
A69: Утверждаю | F69: Согласовано
A70: Директор | F70: Директор
A71: ___________________ | F71: ___________________
A72: 5 день
A73: Прием пищи, наименование блюда | B73: Масса порции | C73: Пищевые вещества | F73: Энергети-ческая ценность, ккал | G73: № рецеп-туры | H73: Сборник рецептур
C74: Белки, г | D74: Жиры, г | E74: Углеводы, г
A75: Завтрак
A76: КАША МОЛОЧНАЯ ИЗ РИСА И ПШЕНА ДРУЖБА С МАСЛОМ №175 | B76: 160 | C76: 10.86 | D76: 11.92 | E76: 27.76 | F76: 206.00 | G76: 175
A77: БУТЕРБРОД С ПОВИДЛОМ №2 | B77: 30/20 | C77: 5.00 | D77: 4.40 | E77: 25.20 | F77: 156.00 | G77: 2 | H77: 2017
A78: ЧАЙ С САХАРОМ № 685 | B78: 200 | C78: 0.20 | D78: 0.00 | E78: 15.00 | F78: 58.00 | G78: 685 | H78: 2011
A79: ФРУКТЫ СВЕЖИЕ (ЯБЛОКО) №338 | B79: 150 | C79: 0.80 | D79: 0.80 | E79: 17.90 | F79: 85.50 | G79: 338 | H79: 2017
A81: Итого за прием пищи: | B81: 560 | C81: =SUM(C76:C80) -> 16.86 | D81: =SUM(D76:D80) -> 17.12 | E81: =SUM(E76:E80) -> 85.86 | F81: =SUM(F76:F80) -> 505.50
A82: Полдник
A83: КРУАССАН №147 | B83: 100 | C83: 8.30 | D83: 8.80 | E83: 32.20 | F83: 218.80 | G83: 147
A84: КОМПОТ ИЗ СУХОФРУКТОВ №53 | B84: 200 | C84: 0.30 | D84: 0.00 | E84: 16.00 | F84: 66.40 | G84: 53
A85: Итого за прием пищи: | B85: 300 | C85: =SUM(C83:C84) -> 8.60 | D85: =SUM(D83:D84) -> 8.80 | E85: =SUM(E83:E84) -> 48.20 | F85: =SUM(F83:F84) -> 285.20
A86: Утверждаю | F86: Согласовано
A87: Директор | F87: Директор
A88: ___________________ | F88: ___________________
A89: 6 день
A90: Прием пищи, наименование блюда | B90: Масса порции | C90: Пищевые вещества | F90: Энергети-ческая ценность, ккал | G90: № рецеп-туры | H90: Сборник рецептур
C91: Белки, г | D91: Жиры, г | E91: Углеводы, г
A92: Завтрак
A93: КАША МОЛОЧНАЯ ИЗ МАННОЙ КРУПЫ №181 | B93: 160 | C93: 7.20 | D93: 8.70 | E93: 33.81 | F93: 211.64 | G93: 181
A94: БУТЕРБРОД С МАСЛОМ И СЫРОМ №3 | B94: 35/5/10 | C94: 5.80 | D94: 8.00 | E94: 11.60 | F94: 147.00 | G94: 3 | H94: 2017
A95: КОФЕЙНЫЙ НАПИТОК С МОЛОКОМ № 379 | B95: 200 | C95: 3.16 | D95: 2.66 | E95: 15.94 | F95: 100.60 | G95: 379
A96: ФРУКТЫ СВЕЖИЕ (ЯБЛОКО) №338 | B96: 150 | C96: 0.80 | D96: 0.80 | E96: 17.90 | F96: 85.50 | G96: 338 | H96: 2017
A97: Итого за прием пищи: | B97: 560 | C97: =SUM(C93:C96) -> 16.96 | D97: =SUM(D93:D96) -> 20.16 | E97: =SUM(E93:E96) -> 79.25 | F97: =SUM(F93:F96) -> 544.74
A98: Полдник
A99: ПИРОЖОК В АССОРТИМЕНТЕ № 140 | B99: 100 | C99: 8.80 | D99: 9.60 | E99: 33.70 | F99: 226.90 | G99: 140
A100: ЧАЙ С САХАРОМ № 685 | B100: 200 | C100: 0.20 | D100: 0.00 | E100: 15.00 | F100: 58.00 | G100: 685 | H100: 2011
A101: Итого за прием пищи: | B101: 300 | C101: =SUM(C99:C100) -> 9.00 | D101: =SUM(D99:D100) -> 9.60 | E101: =SUM(E99:E100) -> 48.70 | F101: =SUM(F99:F100) -> 284.90
A104: Утверждаю | F104: Согласовано
A105: Директор | F105: Директор
A106: ___________________ | F106: ___________________
A107: 7 день
A108: Прием пищи, наименование блюда | B108: Масса порции | C108: Пищевые вещества | F108: Энергети-ческая ценность, ккал | G108: № рецеп-туры | H108: Сборник рецептур
C109: Белки, г | D109: Жиры, г | E109: Углеводы, г
A110: Завтрак
A111: ОВОЩИ ПО СЕЗОНУ ( КАПУСТА КВАШЕНАЯ №3 или ИКРА КАБАЧКОВАЯ №88) | B111: 60 | C111: 0.90 | D111: 4.30 | E111: 3.75 | F111: 57.70 | G111: 3/88
A112: КОТЛЕТА РУБЛЕНАЯ С БЕЛОКОЧАННОЙ КАПУСТОЙ (говядина) С СОУСОМ ТОМАТНЫМ № 455/363 | B112: 90/30 | C112: 9.00 | D112: 8.70 | E112: 20.20 | F112: 205.60 | G112: 455/363
A114: КАША ГРЕЧНЕВАЯ ВЯЗКАЯ (ГАРНИР) №303 | B114: 150 | C114: 3.99 | D114: 4.50 | E114: 17.72 | F114: 125.90 | G114: 303
A115: КОМПОТ ИЗ СУХОФРУКТОВ №53 | B115: 200 | C115: 0.30 | D115: 0.00 | E115: 16.00 | F115: 66.40 | G115: 53
A116: ХЛЕБ ПШЕНИЧНЫЙ №6 | B116: 30 | C116: 2.37 | D116: 0.30 | E116: 14.49 | F116: 70.90 | G116: 6
A117: Итого за прием пищи: | B117: 560 | C117: =SUM(C111:C116) -> 16.56 | D117: =SUM(D111:D116) -> 17.80 | E117: =SUM(E111:E116) -> 72.16 | F117: =SUM(F111:F116) -> 526.50
A118: Полдник
A119: БУЛОЧКА СДОБНАЯ №146 | B119: 100 | C119: 8.90 | D119: 9.50 | E119: 31.50 | F119: 220.10 | G119: 146
A120: ЧАЙ С САХАРОМ № 685 | B120: 200 | C120: 0.20 | D120: 0.00 | E120: 15.00 | F120: 58.00 | G120: 685 | H120: 2011
A121: Итого за прием пищи: | B121: 300 | C121: =SUM(C119:C120) -> 9.10 | D121: =SUM(D119:D120) -> 9.50 | E121: =SUM(E119:E120) -> 46.50 | F121: =SUM(F119:F120) -> 278.10
A122: Утверждаю | F122: Согласовано
A123: Директор | F123: Директор
A124: ___________________ | F124: ___________________
A125: 8 день
A126: Прием пищи, наименование блюда | B126: Масса порции | C126: Пищевые вещества | F126: Энергети-ческая ценность, ккал | G126: № рецеп-туры | H126: Сборник рецептур
C127: Белки, г | D127: Жиры, г | E127: Углеводы, г
A128: Завтрак
A130: ОВОЩИ ПО СЕЗОНУ (ОГУРЕЦ СОЛЕНЫЙ или ОГУРЕЦ СВЕЖИЙ № 1 | B130: 60 | C130: 0.41 | D130: 0.1 | E130: 0.84 | F130: 5.0 | G130: 1
A131: ЖАРКОЕ ПО-ДОМАШНЕМУ № 259 | B131: 200 | C131: 11.92 | D131: 18.10 | E131: 45.30 | F131: 305.00 | G131: 259
A132: ЧАЙ С САХАРОМ № 685 | B132: 200 | C132: 0.20 | D132: 0.00 | E132: 15.00 | F132: 58.00 | G132: 685 | H132: 2011
A133: ХЛЕБ ПШЕНИЧНЫЙ №6 | B133: 50 | C133: 3.95 | D133: 0.50 | E133: 21.15 | F133: 116.33 | G133: 6
A134: Итого за прием пищи: | B134: =SUM(B130:B133) -> 510 | C134: =SUM(C130:C133) -> 16.48 | D134: =SUM(D130:D133) -> 18.7 | E134: =SUM(E130:E133) -> 82.29 | F134: =SUM(F130:F133) -> 484.3
A135: Полдник
A136: КРУАССАН № 147 | B136: 100 | C136: 8.30 | D136: 8.80 | E136: 32.20 | F136: 218.80 | G136: 147
A137: ЧАЙ С САХАРОМ КАРКАДЕ №685К | B137: 200 | C137: 0.20 | D137: 0.00 | E137: 9.20 | F137: 42.00 | G137: 685К | H137: 2011
A138: Итого за прием пищи: | B138: 300 | C138: =SUM(C136:C137) -> 8.50 | D138: =SUM(D136:D137) -> 8.80 | E138: =SUM(E136:E137) -> 41.40 | F138: =SUM(F136:F137) -> 260.80
A139: Утверждаю | F139: Согласовано
A140: Директор | F140: Директор
A141: ___________________ | F141: ___________________
A142: 9 день
A143: Прием пищи, наименование блюда | B143: Масса порции | C143: Пищевые вещества | F143: Энергети-ческая ценность, ккал | G143: № рецеп-туры | H143: Сборник рецептур
C144: Белки, г | D144: Жиры, г | E144: Углеводы, г
A145: Завтрак
A146: КОТЛЕТЫ РУБЛЕНЫЕ ИЗ ПТИЦЫ С СОУСОМ ТОМАТНЫМ №294/363 | B146: 90/30 | C146: 11.30 | D146: 12.10 | E146: 14.60 | F146: 205.60 | G146: 294/363
A147: МАКАРОННЫЕ ИЗДЕЛИЯ ОТВАРНЫЕ №203 | B147: 150 | C147: 3.70 | D147: 5.70 | E147: 28.20 | F147: 195.70 | G147: 203 | H147: 2017
A148: ЧАЙ С САХАРОМ И ЛИМОНОМ №686 | B148: 200 | C148: 0.30 | D148: 0.00 | E148: 15.20 | F148: 60.00 | G148: 686 | H148: 2011
A149: ХЛЕБ ПШЕНИЧНЫЙ №6 | B149: 30 | C149: 2.37 | D149: 0.30 | E149: 14.49 | F149: 70.90 | G149: 6
A150: Итого за прием пищи: | B150: 500 | C150: =SUM(C146:C149) -> 17.67 | D150: =SUM(D146:D149) -> 18.10 | E150: =SUM(E146:E149) -> 72.49 | F150: =SUM(F146:F149) -> 532.20
A151: Полдник
A152: ПИРОЖОК В АССОРТИМЕНТЕ №140 | B152: 100 | C152: 8.80 | D152: 9.60 | E152: 33.70 | F152: 226.90 | G152: 140
A153: СОК ФРУКТОВЫЙ (ЯБЛОЧНЫЙ) | B153: 200 | C153: 0.20 | D153: 0.20 | E153: 16.50 | F153: 112.70 | G153: 389
A154: Итого за прием пищи: | B154: 300 | C154: =SUM(C152:C153) -> 9.00 | D154: =SUM(D152:D153) -> 9.80 | E154: =SUM(E152:E153) -> 50.20 | F154: =SUM(F152:F153) -> 339.60
A155: Утверждаю | F155: Согласовано
A156: Директор | F156: Директор
A157: ___________________ | F157: ___________________
A158: 10 день
A159: Прием пищи, наименование блюда | B159: Масса порции | C159: Пищевые вещества | F159: Энергети-ческая ценность, ккал | G159: № рецеп-туры | H159: Сборник рецептур
C160: Белки, г | D160: Жиры, г | E160: Углеводы, г
A161: Завтрак
A162: ЛАПШЕВНИК С ТВОРОГОМ С СОУСОМ МОЛОЧНЫМ №154 | B162: 200/30 | C162: 10.9 | D162: 15.3 | E162: 38.8 | F162: 256.9 | G162: 154
A163: ПЕЧЕНЬЕ №9 | B163: 30 | C163: 3.80 | D163: 4.10 | E163: 14.00 | F163: 90.50 | G163: 9
A164: ЧАЙ С САХАРОМ КАРКАДЕ №685К | B164: 200 | C164: 0.20 | D164: 0.00 | E164: 9.20 | F164: 42.00 | G164: 685К | H164: 2011
A165: ХЛЕБ ПШЕНИЧНЫЙ №6 | B165: 50 | C165: 3.95 | D165: 0.50 | E165: 21.15 | F165: 116.33 | G165: 6
A166: Итого за прием пищи: | B166: 510 | C166: =SUM(C162:C165) -> 18.85 | D166: =SUM(D162:D165) -> 19.90 | E166: =SUM(E162:E165) -> 83.15 | F166: =SUM(F162:F165) -> 505.73
A167: Полдник
A168: БУЛОЧКА СДОБНАЯ №146 | B168: 100 | C168: 8.90 | D168: 9.50 | E168: 31.50 | F168: 220.10 | G168: 146
A169: КОМПОТ ИЗ СУХОФРУКТОВ №53 | B169: 200 | C169: 0.30 | D169: 0.00 | E169: 16.00 | F169: 66.40 | G169: 53
A170: Итого за прием пищи: | B170: 300 | C170: =SUM(C168:C169) -> 9.20 | D170: =SUM(D168:D169) -> 9.50 | E170: =SUM(E168:E169) -> 47.50 | F170: =SUM(F168:F169) -> 286.50
A171: ИТОГО ПО ПРИМЕРНОМУ МЕНЮ
A172: Итого | C172: б | D172: ж | E172: уг | F172: ккал
A173: Итого за период | C173: 265,85/268,35 | D173: 276,44/276,64 | E173: 1228,76/1230,86 | F173: 8018,00/8034,7
A174: Среднее значение за период | C174: 26,59/26,84 | D174: 27,64/27,66 | E174: 122,88/123,09 | F174: 801,8/803,5
A175: Соотношение пищевых веществ | C175: 1 | D175: 1 | E175: 4
A176: Сборник рецептур на продукцию для обучающихся во всех образовательных учреждениях / Под ред. М.П. Могильного и В.А. Тутельяна. - М.:ДеЛи плюс, 2017. - 543с.
A177: Сборник рецептур и кулинарных изделий для предприятий общественного питания при общеобразовательных школах / Под ред. В.Т. Лапшиной. - М.: Хлебпродинформ, 2004. - 640с.
A178: Сборник рецептур блюд и кулинарных изделий для обучающихся образовательных организаций. Сборник технических нормативов. ФГФУ НЦЗД Минздрава России, НИИ ГиОЗДиП / под редакцией член-корр. РАН, д.м.н., профессора В.Р. Кучмы - М.: Издатель Научный центр здоровья детей, 2016. - 560 с.
A179: Таблицы химического состава и калорийности российских продуктов питания: Справочник. - М.: ДеЛи принт, 2008. - 276с. Скурихин И.М., Тутельян В.А.
A180: Сборник рецептур блюд и кулинарных изделий для питания детей в дошкольных организациях / Под ред. М.П. Могильного и В.А. Тутельяна. - М.:ДеЛи принт, 2011. - 584с.

Sheet Г1 (4)
A3: У Т В Е Р Ж Д А Ю: | F3: С О Г Л А С О В А Н О:
A4: Директор ООО "Союз-К" | F4: Директор МБОУ "Куликовская СШ"
A5: ______________________ Д.Г. Киселев | F5: ____________________ О.В. Перегудова
C14: Примерное 10-ти дневное меню
C15: для обеспечения бесплатным
C16: двухразовым питанием
C17: обучающихся с ограниченными возможностями
C18: здоровья, детей-инвалидов
C19: возрастной группы 7-11 лет
